fUSD/lending_fUSD_20260525
["ID","MTS","AMOUNT","RATE_DAILY","PERIOD"]
[422966808,1779689432000,-191.75,0.00010824,2]
[422966806,1779689432000,-3156.85,0.00010779,2]
[422966802,1779689432000,-150.0,0.00010756,2]
[422966803,1779689432000,-150.0,0.00010756,2]
[422966814,1779689432000,-135983.7394635,0.00011092,2]
[422966801,1779689432000,-150.0,0.00010756,2]
[422966800,1779689432000,-150.0,0.00010756,2]
[422966790,1779689432000,-287.14999999,0.00010738,2]
[422966795,1779689432000,-150.0,0.00010756,2]
[422966793,1779689432000,-150.0,0.00010756,2]
[422966794,1779689432000,-150.0,0.00010756,2]
[422966792,1779689432000,-150.0,0.00010756,2]
[422966791,1779689432000,-150.0,0.00010756,2]
[422966807,1779689432000,-169.3,0.00010821,2]
[422966796,1779689432000,-150.0,0.00010756,2]
[422966799,1779689432000,-150.0,0.00010756,2]
[422966804,1779689432000,-184.48877466,0.00010756,2]
[422966805,1779689432000,-166.66,0.00010779,2]
[422966798,1779689432000,-250.0,0.00010756,2]
[422966797,1779689432000,-150.0,0.00010756,2]
[422966834,1779689438000,-397.0,0.00011135,2]
[422966837,1779689438000,-397.0,0.00011196,2]
[422966846,1779689438000,-166.66,0.00011314,2]
[422966835,1779689438000,-397.0,0.00011142,2]
[422966836,1779689438000,-397.0,0.00011189,2]
[422966833,1779689438000,-397.0,0.00011126,2]
[422966830,1779689438000,-9992.72110244,0.00011099,2]
[422966848,1779689438000,-9992.7211024,0.00011432,2]
[422966831,1779689438000,-397.0,0.00011109,2]
[422966822,1779689438000,-7184.85275532,0.00011092,2]
[422966828,1779689438000,-175.8401431,0.00011098,2]
[422966827,1779689438000,-752.89804053,0.00011098,2]
[422966825,1779689438000,-151.0,0.00011092,2]
[422966826,1779689438000,-151.0,0.00011092,2]
[422966824,1779689438000,-2866.97869718,0.00011092,2]
[422966820,1779689438000,-602.099174,0.00010385,2]
[422966821,1779689438000,-397.900826,0.00011092,2]
[422966823,1779689438000,-14817.01123841,0.00011092,2]
[422966832,1779689438000,-166.6,0.00011125,2]
[422966838,1779689438000,-397.0,0.00011207,2]
[422966829,1779689438000,-500.0,0.00011098,2]
[422966839,1779689438000,-6959.57136521,0.0001121,2]
[422966862,1779689438000,-9190.47180094,0.0001176,2]
[422966861,1779689438000,-521.02720887,0.00011759,2]
[422966855,1779689438000,-586.23,0.00011729,2]
[422966859,1779689438000,-500.0,0.00011759,2]
[422966858,1779689438000,-500.0,0.00011759,2]
[422966856,1779689438000,-888.30302079,0.0001174,2]
[422966854,1779689438000,-566.91048324,0.00011686,2]
[422966857,1779689438000,-885.79697921,0.0001174,2]
[422966852,1779689438000,-504.13866721,0.00011646,2]
[422966849,1779689438000,-433.0,0.00011532,2]
[422966847,1779689438000,-500.0,0.00011372,2]
[422966853,1779689438000,-1433.08951676,0.00011686,2]
[422966860,1779689438000,-500.0,0.00011759,2]
[422966850,1779689438000,-166.69,0.0001161,2]
[422966845,1779689438000,-2351.0,0.00011311,2]
[422966840,1779689438000,-1677.49,0.00011227,2]
[422966844,1779689438000,-587.0,0.00011311,2]
[422966842,1779689438000,-397.0,0.00011232,2]
[422966841,1779689438000,-186.03,0.00011232,2]
[422966843,1779689438000,-150.0,0.00011233,2]
[422966851,1779689438000,-6959.57136517,0.0001162,2]
[422966978,1779689440000,-736.11587148,0.0001203,2]
[422966974,1779689440000,-9992.7211024,0.00011865,2]
[422966977,1779689440000,-166.75,0.00011958,2]
[422966990,1779689440000,-150.0,0.0001215,2]
[422966976,1779689440000,-1430.04502961,0.00011929,2]
[422966980,1779689440000,-6223.45549369,0.0001203,2]
[422966991,1779689440000,-150.0,0.0001215,2]
[422966979,1779689440000,-2445.30110111,0.00010992,2]
[422966975,1779689440000,-200.0,0.00011884,2]
[422966973,1779689440000,-151.0,0.00011857,2]
[422966968,1779689440000,-596.298,0.00011857,2]
[422966970,1779689440000,-1361.0979196,0.00011857,2]
[422966972,1779689440000,-151.0,0.00011857,2]
[422966969,1779689440000,-1573.41116761,0.00011857,2]
[422966967,1779689440000,-416.95088795,0.00011857,2]
[422966965,1779689440000,-263.76021466,0.0001176,2]
[422966966,1779689440000,-7530.5509829,0.00011857,2]
[422966964,1779689440000,-376.44902027,0.0001176,2]
[422966963,1779689440000,-13087.05696573,0.0001176,2]
[422966981,1779689440000,-197.697384,0.0001203,2]
[422966971,1779689440000,-151.0,0.00011857,2]
[422966984,1779689440000,-197.697384,0.0001203,2]
[422966988,1779689440000,-254.839067,0.0001203,2]
[422966987,1779689440000,-254.839067,0.0001203,2]
[422967010,1779689440000,-4065.0,0.00012455,5]
[422967009,1779689440000,-3292.0,0.00012442,2]
[422966989,1779689440000,-254.839067,0.0001203,2]
[422967005,1779689440000,-3844.0,0.00012386,5]
[422967004,1779689440000,-186.03,0.00012355,2]
[422967002,1779689440000,-344.02,0.00012329,2]
[422967000,1779689440000,-151.0,0.00012279,2]
[422966999,1779689440000,-151.0,0.00012279,2]
[422967006,1779689440000,-350.0,0.00012399,2]
[422967001,1779689440000,-9992.7211024,0.00012299,2]
[422967003,1779689440000,-177.19,0.00012333,2]
[422967007,1779689440000,-6959.57136517,0.0001244,2]
[422967008,1779689440000,-823.0,0.00012442,2]
[422966982,1779689440000,-197.697384,0.0001203,2]
[422966983,1779689440000,-197.697384,0.0001203,2]
[422966986,1779689440000,-254.839067,0.0001203,2]
[422966985,1779689440000,-151.0,0.0001203,2]
[422966994,1779689440000,-276.16960997,0.0001215,2]
[422966996,1779689440000,-466.39148484,0.00012277,2]
[422966998,1779689440000,-350.0,0.00012279,2]
[422966992,1779689440000,-150.0,0.0001215,2]
[422967014,1779689441000,-202.11123625,0.00012588,2]
[422967027,1779689441000,-500.0,0.00012597,2]
[422967022,1779689441000,-500.0,0.00012597,2]
[422967025,1779689441000,-500.0,0.00012597,2]
[422967023,1779689441000,-162.88999472,0.00012597,2]
[422967015,1779689441000,-500.0,0.00012597,2]
[422967018,1779689441000,-500.0,0.00012597,5]
[422967012,1779689441000,-166.69,0.00012503,2]
[422967011,1779689441000,-5000.0,0.00012498,2]
[422967020,1779689441000,-279.79563145,0.00012597,2]
[422967021,1779689441000,-500.0,0.00012597,2]
[422967017,1779689441000,-500.0,0.00012597,4]
[422967013,1779689441000,-350.0,0.00012528,2]
[422967019,1779689441000,-500.0,0.00012597,6]
[422967032,1779689441000,-153.919325,0.00012598,2]
[422967016,1779689441000,-500.0,0.00012597,3]
[422967030,1779689441000,-500.0,0.00012597,2]
[422967047,1779689441000,-6210.8084774,0.00012598,2]
[422967029,1779689441000,-500.0,0.00012597,2]
[422967046,1779689441000,-154702.96399245,0.00012598,2]
[422967044,1779689441000,-151.0,0.00012598,2]
[422967045,1779689441000,-204.808712,0.00012598,2]
[422967039,1779689441000,-151.0,0.00012598,2]
[422967043,1779689441000,-254.839067,0.00012598,2]
[422967042,1779689441000,-254.839067,0.00012598,2]
[422967026,1779689441000,-353.7966912,0.00012597,2]
[422967040,1779689441000,-254.839067,0.00012598,2]
[422967041,1779689441000,-254.839067,0.00012598,2]
[422967038,1779689441000,-197.697384,0.00012598,2]
[422967033,1779689441000,-151.0,0.00012598,2]
[422967035,1779689441000,-197.697384,0.00012598,2]
[422967028,1779689441000,-231.22696464,0.00012597,2]
[422967036,1779689441000,-197.697384,0.00012598,2]
[422967031,1779689441000,-4065.0,0.00012598,5]
[422967034,1779689441000,-151.0,0.00012598,2]
[422967037,1779689441000,-197.697384,0.00012598,2]
[422967053,1779689443000,-1201.30770749,0.00012598,2]
[422967060,1779689446000,-1973.19552662,0.0001155,2]
[422967062,1779689446000,-6499.44649431,0.00012598,2]
[422967063,1779689446000,-7934.61690464,0.00012598,2]
[422967061,1779689446000,-472.10557444,0.0001155,2]
[422967065,1779689446000,-350.625,0.00012598,2]
[422967067,1779689446000,-2004.0,0.00012598,2]
[422967068,1779689446000,-2302.95831918,0.00012598,2]
[422967066,1779689446000,-42153.90670311,0.00012598,2]
[422967064,1779689446000,-289.36065209,0.00012598,2]
[422967077,1779689449000,-6152.94726869,0.00012598,2]
[422967076,1779689449000,-1360.90393,0.00012598,2]
[422967075,1779689449000,-1429.6483815,0.00012598,2]
[422967074,1779689449000,-318.02436201,0.00012598,2]
[422967073,1779689449000,-1129.86403654,0.00012598,2]
[422967093,1779689467000,194.140529,7.945e-05,2]
[422967094,1779689573000,153.06,5.867e-05,2]
[422967095,1779689573000,153.06,6.212e-05,2]
[422967097,1779689573000,153.06,6.902e-05,2]
[422967098,1779689573000,153.06,7.247e-05,2]
[422967096,1779689573000,153.06,6.557e-05,2]
[422967101,1779689574000,153.06,8.282e-05,2]
[422967100,1779689574000,153.06,7.937e-05,2]
[422967099,1779689574000,153.06,7.592e-05,2]
[422967110,1779690283000,500.0,8.625e-05,3]
[422967116,1779690325000,-250.0,8.858e-05,2]
[422967111,1779690325000,-500.0,8.625e-05,2]
[422967113,1779690325000,-153.06,8.627e-05,2]
[422967112,1779690325000,-250.0,8.626e-05,2]
[422967114,1779690325000,-3664.315496,8.748e-05,2]
[422967115,1779690325000,-169.3,8.793e-05,2]
[422967117,1779690325000,-153.06,8.973e-05,2]
[422967121,1779690325000,-671.0,9.042e-05,2]
[422967119,1779690325000,-1200.0,9.041e-05,2]
[422967124,1779690325000,-2099.264504,9.043e-05,2]
[422967123,1779690325000,-300.0,9.042e-05,2]
[422967118,1779690325000,-200.0,9.02e-05,2]
[422967122,1779690325000,-207.0,9.042e-05,2]
[422967120,1779690325000,-183.0,9.042e-05,2]
[422967125,1779690325000,-10000.0,9.043e-05,2]
[422967127,1779690326000,-418.2512123,9.2e-05,2]
[422967129,1779690326000,-2000.0,9.221e-05,2]
[422967126,1779690326000,-5894.845496,9.043e-05,2]
[422967128,1779690326000,-284.57546954,9.212e-05,2]
[422967132,1779690326000,-153.06,9.318e-05,2]
[422967131,1779690326000,-150.0,9.315e-05,2]
[422967133,1779690326000,-99.26782216,9.326e-05,2]
[422967130,1779690326000,-1000.0,9.224e-05,2]
[422967134,1779690327000,-60.73217784,9.326e-05,2]
[422967141,1779690327000,-383.060665,9.487e-05,2]
[422967140,1779690327000,-306.83692136,9.487e-05,2]
[422967142,1779690327000,-221.0,9.491e-05,2]
[422967139,1779690327000,-209.75860896,9.487e-05,2]
[422967138,1779690327000,-250.0,9.487e-05,2]
[422967137,1779690327000,-2034.0,9.456e-05,2]
[422967135,1779690327000,-3093.26580143,9.326e-05,2]
[422967136,1779690327000,-500.0,9.355e-05,2]
[422967143,1779690327000,-2941.34582541,9.491e-05,2]
[422967144,1779690328000,-5973.65417459,9.491e-05,2]
[422967146,1779690328000,-213.11728104,9.57e-05,2]
[422967145,1779690328000,-1528.21,9.532e-05,2]
[422967149,1779690371000,151.68,5.572e-05,2]
[422967148,1779690371000,151.68,5.065e-05,2]
[422967153,1779690372000,151.68,7.598e-05,2]
[422967152,1779690372000,151.68,7.092e-05,2]
[422967151,1779690372000,151.68,6.585e-05,2]
[422967150,1779690372000,151.68,6.079e-05,2]
[422967154,1779690373000,151.68,8.105e-05,2]
[422967177,1779690632000,-20118.7916778,0.0001,2]
[422967173,1779690632000,-155.62,9.672e-05,2]
[422967174,1779690632000,-3489.95,9.672e-05,2]
[422967170,1779690632000,-300.0,9.671e-05,2]
[422967176,1779690632000,-150.0,9.999e-05,2]
[422967171,1779690632000,-300.0,9.671e-05,2]
[422967169,1779690632000,-153.06,9.663e-05,2]
[422967168,1779690632000,-151.68,9.624e-05,2]
[422967165,1779690632000,-154.02660377,9.472e-05,2]
[422967164,1779690632000,-156.21755613,9.472e-05,2]
[422967166,1779690632000,-250.0,9.472e-05,2]
[422967163,1779690632000,-193.0,9.472e-05,2]
[422967160,1779690632000,-317.7919251,9.465e-05,2]
[422967162,1779690632000,-500.0,9.472e-05,2]
[422967161,1779690632000,-461.5480749,9.465e-05,2]
[422967158,1779690632000,-151.68,8.611e-05,2]
[422967159,1779690632000,-151.68,9.118e-05,2]
[422967167,1779690632000,-500.0,9.549e-05,2]
[422967172,1779690632000,-1200.0,9.671e-05,2]
[422967175,1779690632000,-2404.22,9.909e-05,2]
[422967178,1779690632000,-1178.8425066,0.0001,2]
[422967197,1779690632000,-561.36,0.00010475,2]
[422967194,1779690632000,-3709.14695796,0.00010475,2]
[422967196,1779690632000,-764.99473768,0.00010475,2]
[422967192,1779690632000,-153.06,0.00010353,2]
[422967193,1779690632000,-2000.0,0.00010373,2]
[422967191,1779690632000,-1000.0,0.00010349,2]
[422967190,1779690632000,-111003.87298766,0.000103,2]
[422967189,1779690632000,-13781.14904396,0.000103,2]
[422967195,1779690632000,-1254.41808677,0.00010475,2]
[422967185,1779690632000,-1160.05809359,0.00010103,2]
[422967187,1779690632000,-177.88848839,0.00010248,2]
[422967181,1779690632000,-153.06,0.00010008,2]
[422967180,1779690632000,-150.0,0.0001,2]
[422967183,1779690632000,-6015.0,0.00010029,2]
[422967179,1779690632000,-5845.07777545,0.0001,2]
[422967186,1779690632000,-151.68,0.00010131,2]
[422967188,1779690632000,-20833.70093325,0.000103,2]
[422967182,1779690632000,-6096.41820917,0.00010019,2]
[422967184,1779690632000,-262.76337469,0.000101,2]
[422967202,1779690638000,-931.85130686,0.00010475,2]
[422967203,1779690638000,-680.96891073,0.00010475,2]
[422967204,1779690638000,-275.82180815,0.00010515,2]
[422967210,1779690640000,-3699.87057472,0.00010515,2]
[422967211,1779690641000,-186.29109748,0.00010515,2]
[422967212,1779690641000,-474.19679408,0.00010515,2]
[422967220,1779690643000,-1036.54681711,0.00010515,2]
[422967221,1779690643000,-560.25289045,0.00010536,2]
[422967219,1779690643000,-1974.55687841,0.00010515,2]
[422967218,1779690643000,-295.71603005,0.00010515,2]
[422967327,1779690647000,-339.37857164,0.00010536,2]
[422967326,1779690647000,-1740.96000304,0.00010536,2]
[422967325,1779690647000,-727.20426239,0.00010536,2]
[422967365,1779691132000,152.76,5.312e-05,2]
[422967366,1779691132000,152.76,6.071e-05,2]
[422967369,1779691132000,152.76,7.589e-05,2]
[422967367,1779691132000,152.76,6.83e-05,2]
[422967370,1779691133000,152.76,8.348e-05,2]
[422967466,1779691754000,-250.0,9.477e-05,2]
[422967467,1779691754000,-9200.24,9.515e-05,2]
[422967465,1779691754000,-397.0,9.371e-05,2]
[422967464,1779691754000,-152.76,9.107e-05,2]
[422967469,1779691756000,-10000.0,9.515e-05,2]
[422967468,1779691756000,-10000.0,9.515e-05,2]
[422967471,1779691757000,-10000.0,9.515e-05,2]
[422967470,1779691757000,-10000.0,9.515e-05,2]
[422967472,1779691757000,-10000.0,9.515e-05,2]
[422967474,1779691758000,-10000.0,9.515e-05,2]
[422967473,1779691758000,-10000.0,9.515e-05,2]
[422967477,1779691759000,-10000.0,9.515e-05,2]
[422967479,1779691760000,-10000.0,9.515e-05,2]
[422967478,1779691760000,-10000.0,9.515e-05,2]
[422967480,1779691761000,-10000.0,9.515e-05,2]
[422967481,1779691762000,-680.14,9.515e-05,2]
[422967487,1779691787000,-500.0,9.56e-05,2]
[422967488,1779691787000,-211.31395408,9.56e-05,2]
[422967499,1779691788000,-4054.73813776,0.00010128,2]
[422967497,1779691788000,-211.31395408,0.00010126,2]
[422967496,1779691788000,-2290.52,0.00010027,2]
[422967498,1779691788000,-334.0,0.00010127,2]
[422967495,1779691788000,-250.0,0.00010018,2]
[422967494,1779691788000,-250.0,0.00010018,2]
[422967490,1779691788000,-200.0,9.667e-05,2]
[422967493,1779691788000,-211.31395408,9.893e-05,2]
[422967491,1779691788000,-569.94,9.847e-05,2]
[422967492,1779691788000,-152.76,9.866e-05,2]
[422967489,1779691788000,-764.1,9.593e-05,2]
[422967500,1779691789000,-2979.26186224,0.00010128,2]
[422967501,1779691789000,-1200.0,0.00010224,2]
[422967502,1779691789000,-300.0,0.00010225,2]
[422967506,1779691789000,-1621.54162496,0.00010226,2]
[422967504,1779691789000,-1356.3633642,0.00010226,2]
[422967505,1779691789000,-2392.8331486,0.00010226,2]
[422967503,1779691789000,-150.0,0.00010225,2]
[422967509,1779691790000,-6288.24457486,0.00010226,2]
[422967507,1779691790000,-184.75589724,0.00010226,2]
[422967508,1779691790000,-3526.9995279,0.00010226,2]
[422967511,1779691820000,-1200.0,0.00010225,2]
[422967512,1779691820000,-7097.0,0.00010226,2]
[422967531,1779691832000,-153.06,0.00010698,2]
[422967533,1779691832000,-9290.0,0.00010719,2]
[422967536,1779691832000,-2290.52,0.00010779,2]
[422967538,1779691832000,-155.62,0.00010881,2]
[422967537,1779691832000,-13835.09,0.00010824,2]
[422967541,1779691832000,-150.0,0.00010959,2]
[422967540,1779691832000,-4545.47,0.00010959,2]
[422967545,1779691832000,-569.94,0.00011078,2]
[422967534,1779691832000,-151.0,0.00010721,2]
[422967542,1779691832000,-408.0,0.00011,2]
[422967544,1779691832000,-153.06,0.00011043,2]
[422967543,1779691832000,-2290.52,0.0001103,2]
[422967539,1779691832000,-3626.74401022,0.000109,2]
[422967532,1779691832000,-6138.48066332,0.000107,2]
[422967526,1779691832000,-2290.52,0.00010529,2]
[422967529,1779691832000,-152.76,0.00010625,2]
[422967528,1779691832000,-166.44,0.00010608,2]
[422967546,1779691832000,-151.0,0.00011096,2]
[422967527,1779691832000,-654.7,0.00010602,2]
[422967535,1779691832000,-3724.09153934,0.00010723,2]
[422967523,1779691832000,-6228.0,0.00010346,2]
[422967524,1779691832000,-1870.47,0.00010411,2]
[422967522,1779691832000,-208.87966228,0.000103,2]
[422967521,1779691832000,-2290.52,0.00010278,2]
[422967520,1779691832000,-5436.20427248,0.00010251,2]
[422967519,1779691832000,-203.36428462,0.00010226,2]
[422967517,1779691832000,-42943.86224013,0.00010226,2]
[422967518,1779691832000,-22661.80246551,0.00010226,2]
[422967530,1779691832000,-1922.77,0.00010663,2]
[422967547,1779691832000,-6486.67064124,0.00011099,2]
[422967525,1779691832000,-27373.83430843,0.0001044,2]
[422967550,1779691832000,-6486.67064116,0.00011187,2]
[422967548,1779691832000,-6486.67064116,0.00011099,2]
[422967579,1779691832000,-498.60816711,0.00012087,2]
[422967574,1779691832000,-2450.70162985,0.00012087,2]
[422967578,1779691832000,-4474.17622993,0.00012087,2]
[422967575,1779691832000,-491.75,0.00012087,2]
[422967573,1779691832000,-1468.66553353,0.00012087,2]
[422967572,1779691832000,-8531.32446647,0.00012087,2]
[422967577,1779691832000,-1700.23783598,0.00012087,2]
[422967571,1779691832000,-9999.99,0.00012087,2]
[422967576,1779691832000,-730.79698752,0.00012087,2]
[422967570,1779691832000,-4999.99,0.00012087,2]
[422967569,1779691832000,-1158.01,0.00012087,2]
[422967566,1779691832000,-500.0,0.00012087,2]
[422967564,1779691832000,-1922.77,0.00011996,2]
[422967563,1779691832000,-3626.74401016,0.00011958,2]
[422967565,1779691832000,-150.1409022,0.00012087,2]
[422967568,1779691832000,-3224.08,0.00012087,2]
[422967549,1779691832000,-164.87,0.00011171,2]
[422967555,1779691832000,-3626.74401016,0.00011369,2]
[422967551,1779691832000,-255.0,0.00011237,2]
[422967554,1779691832000,-250.0,0.00011357,2]
[422967567,1779691832000,-151.0,0.00012087,2]
[422967556,1779691832000,-153.06,0.00011388,2]
[422967553,1779691832000,-1680.0,0.00011248,2]
[422967552,1779691832000,-1918.9131562,0.00011241,2]
[422967558,1779691832000,-6486.67064116,0.00011717,2]
[422967559,1779691832000,-153.06,0.00011733,2]
[422967561,1779691832000,-500.0,0.0001189,2]
[422967560,1779691832000,-200.0,0.00011754,2]
[422967562,1779691832000,-164.87,0.00011908,2]
[422967557,1779691832000,-164.87,0.0001154,2]
[422967605,1779691838000,-1754.58005086,0.00012087,2]
[422967601,1779691838000,-500.0,0.00012054,2]
[422967604,1779691838000,-6489.68503265,0.00012087,2]
[422967602,1779691838000,-155.211679,0.00012087,2]
[422967603,1779691838000,-151.0,0.00012087,2]
[422967611,1779691838000,-1227.5859339,0.00012087,2]
[422967607,1779691838000,-150.99,0.00012087,2]
[422967606,1779691838000,-6409.4540661,0.00012087,2]
[422967614,1779691838000,-1.28267669,0.00012087,2]
[422967608,1779691838000,-9999.99,0.00012087,2]
[422967612,1779691838000,-8479.28673679,0.00012087,2]
[422967610,1779691838000,-299.99,0.00012087,2]
[422967613,1779691838000,-293.11732931,0.00012087,2]
[422967616,1779691838000,-260.77964702,0.00012087,2]
[422967615,1779691838000,-432.64732331,0.00012087,2]
[422967609,1779691838000,-499.99,0.00012087,2]
[422967647,1779691843000,-507.83620842,0.00012087,2]
[422967654,1779691846000,-509.0,0.00012087,2]
[422967676,1779691847000,-500.0,0.00012597,2]
[422967686,1779691847000,-500.0,0.00012597,2]
[422967685,1779691847000,-500.0,0.00012597,2]
[422967675,1779691847000,-500.0,0.00012597,2]
[422967677,1779691847000,-500.0,0.00012597,2]
[422967678,1779691847000,-500.0,0.00012597,2]
[422967681,1779691847000,-500.0,0.00012597,2]
[422967679,1779691847000,-500.0,0.00012597,2]
[422967684,1779691847000,-500.0,0.00012597,2]
[422967682,1779691847000,-500.0,0.00012597,2]
[422967673,1779691847000,-500.0,0.00012597,2]
[422967680,1779691847000,-500.0,0.00012597,2]
[422967687,1779691847000,-500.0,0.00012597,2]
[422967694,1779691847000,-500.0,0.00012597,2]
[422967683,1779691847000,-500.0,0.00012597,2]
[422967670,1779691847000,-350.0,0.00012596,2]
[422967665,1779691847000,-500.0,0.00012361,2]
[422967668,1779691847000,-3626.74401016,0.00012546,2]
[422967655,1779691847000,-8722.37414456,0.00012087,2]
[422967659,1779691847000,-4131.241,0.00012259,2]
[422967658,1779691847000,-6486.67064116,0.00012248,2]
[422967657,1779691847000,-244.75057516,0.00012105,2]
[422967656,1779691847000,-155.62,0.0001209,2]
[422967662,1779691847000,-569.94,0.00012309,2]
[422967660,1779691847000,-240.831,0.00012259,2]
[422967661,1779691847000,-164.87,0.00012277,2]
[422967664,1779691847000,-433.0,0.00012352,2]
[422967674,1779691847000,-500.0,0.00012597,2]
[422967663,1779691847000,-342.71,0.00012329,2]
[422967666,1779691847000,-2351.0,0.00012372,2]
[422967667,1779691847000,-151.0,0.00012495,2]
[422967669,1779691847000,-151.0,0.00012564,2]
[422967672,1779691847000,-500.0,0.00012597,2]
[422967671,1779691847000,-500.0,0.00012597,2]
[422967688,1779691847000,-500.0,0.00012597,2]
[422967690,1779691847000,-500.0,0.00012597,2]
[422967693,1779691847000,-500.0,0.00012597,2]
[422967713,1779691847000,-578.32,0.00012597,2]
[422967714,1779691847000,-500.0,0.00012597,2]
[422967716,1779691847000,-500.0,0.00012597,2]
[422967715,1779691847000,-500.0,0.00012597,2]
[422967718,1779691847000,-500.0,0.00012597,2]
[422967719,1779691847000,-633.84,0.00012597,2]
[422967724,1779691847000,-500.0,0.00012597,2]
[422967722,1779691847000,-500.0,0.00012597,2]
[422967725,1779691847000,-500.0,0.00012597,2]
[422967727,1779691847000,-1000.0,0.00012598,2]
[422967721,1779691847000,-500.0,0.00012597,2]
[422967720,1779691847000,-500.0,0.00012597,2]
[422967728,1779691847000,-764.74722007,0.00012598,2]
[422967723,1779691847000,-500.0,0.00012597,2]
[422967692,1779691847000,-500.0,0.00012597,2]
[422967710,1779691847000,-500.0,0.00012597,2]
[422967711,1779691847000,-500.0,0.00012597,2]
[422967726,1779691847000,-151.0,0.00012598,2]
[422967708,1779691847000,-500.0,0.00012597,2]
[422967691,1779691847000,-500.0,0.00012597,2]
[422967689,1779691847000,-500.0,0.00012597,2]
[422967695,1779691847000,-500.0,0.00012597,2]
[422967696,1779691847000,-500.0,0.00012597,2]
[422967698,1779691847000,-500.0,0.00012597,2]
[422967700,1779691847000,-500.0,0.00012597,2]
[422967697,1779691847000,-500.0,0.00012597,2]
[422967699,1779691847000,-500.0,0.00012597,2]
[422967704,1779691847000,-500.0,0.00012597,2]
[422967702,1779691847000,-500.0,0.00012597,2]
[422967705,1779691847000,-500.0,0.00012597,2]
[422967717,1779691847000,-500.0,0.00012597,2]
[422967707,1779691847000,-500.0,0.00012597,2]
[422967706,1779691847000,-500.0,0.00012597,2]
[422967709,1779691847000,-500.0,0.00012597,2]
[422967701,1779691847000,-500.0,0.00012597,2]
[422967712,1779691847000,-500.0,0.00012597,2]
[422967753,1779691848000,-5678.80119499,0.00013,2]
[422967747,1779691848000,-500.0,0.00012899,7]
[422967749,1779691848000,-316.0,0.000129,2]
[422967748,1779691848000,-1000.0,0.000129,2]
[422967750,1779691848000,-309.0,0.000129,2]
[422967761,1779691848000,-3626.74401016,0.00013135,2]
[422967754,1779691848000,-12924.94702904,0.00013,5]
[422967755,1779691848000,-8190.45677141,0.00013,5]
[422967756,1779691848000,-1732.32004172,0.00013,15]
[422967758,1779691848000,-2595.73156971,0.0001305,2]
[422967751,1779691848000,-350.0,0.0001291,2]
[422967745,1779691848000,-151.0,0.00012893,2]
[422967752,1779691848000,-151.0,0.00012997,2]
[422967744,1779691848000,-151.0,0.00012893,2]
[422967736,1779691848000,-164.87,0.00012646,2]
[422967743,1779691848000,-151.0,0.00012893,2]
[422967760,1779691848000,-600.0,0.0001305,2]
[422967730,1779691848000,-1147.66334,0.00012598,2]
[422967729,1779691848000,-226.14967342,0.00012598,2]
[422967732,1779691848000,-1147.66334,0.00012598,2]
[422967731,1779691848000,-1147.66334,0.00012598,2]
[422967733,1779691848000,-1147.66335,0.00012598,2]
[422967746,1779691848000,-151.0,0.00012893,2]
[422967738,1779691848000,-6486.67064116,0.00012778,2]
[422967735,1779691848000,-1147.66334,0.00012598,2]
[422967737,1779691848000,-3542.24477178,0.00012706,2]
[422967740,1779691848000,-152.90344,0.00012893,2]
[422967739,1779691848000,-152.90344,0.00012893,2]
[422967741,1779691848000,-152.90344,0.00012893,2]
[422967742,1779691848000,-152.90344,0.00012893,2]
[422967734,1779691848000,-1147.66335,0.00012598,2]
[422967759,1779691848000,-1000.0,0.0001305,2]
[422967766,1779691848000,-519.0,0.00013139,2]
[422967763,1779691848000,-3560.962,0.00013139,2]
[422967791,1779691848000,-662.74208716,0.00013311,2]